[Event "Djerba Festival Blitz 2025"]
[Site "Djerba"]
[Date "2025.02.21"]
[Round "5.1"]
[White "Oro, Faustino"]
[Black "Maghsoodloo, Parham"]
[Result "1-0"]
[ECO "D31"]
[WhiteElo "2447"]
[BlackElo "2680"]
[PlyCount "97"]
[EventDate "2025.02.15"]
[EventType "swiss"]
[EventCountry "TUN"]
[TimeControl "180+3"]

1. d4 {[%emt 0:00:07]} d5 {[%emt 0:00:11]} 2. c4 {[%emt 0:00:02]} e6 {[%emt 0:00:02]} 3. Nc3 {[%emt 0:00:04]} Bb4 {[%emt 0:00:02]} 4. cxd5 {[%emt 0:00:10]} exd5 {[%emt 0:00:02]} 5. Bf4 {[%emt 0:00:02]} c6 {[%emt 0:00:02]} 6. e3 {[%emt 0:00:05]} Ne7 {[%emt 0:00:03]} 7. h4 {[%emt 0:00:13]} h6 {[%emt 0:00:20]} 8. Nge2 {[%emt 0:00:09]} Na6 {[%emt 0:00:17]} 9. h5 {[%emt 0:00:12]} Nc7 {[%emt 0:00:08]} 10. Ng3 {[%emt 0:00:14]} a5 {[%emt 0:00:06]} 11. Bd3 {[%emt 0:00:06]} O-O {[%emt 0:00:09]} 12. O-O {[%emt 0:00:06]} Ne8 {[%emt 0:00:17]} 13. Qc2 {[%emt 0:00:34]} Bd6 {[%emt 0:00:03]} 14. Nce2 {[%emt 0:00:05]} Nf6 {[%emt 0:00:22]} 15. f3 {[%emt 0:00:08]} Bxf4 {[%emt 0:00:08]} 16. Nxf4 {[%emt 0:00:02]} Re8 {[%emt 0:00:02]} 17. Rae1 {[%emt 0:00:07]} b6 {[%emt 0:00:04]} 18. Qc3 {[%emt 0:00:07]} Qd6 {[%emt 0:00:06]} 19. Nge2 {[%emt 0:00:32]} Bf5 {[%emt 0:00:04]} 20. g4 {[%emt 0:00:03]} Bxd3 {[%emt 0:00:03]} 21. Qxd3 {[%emt 0:00:03]} c5 {[%emt 0:00:02]} 22. Kg2 {[%emt 0:00:05]} Nc6 {[%emt 0:00:07]} 23. a3 {[%emt 0:00:06]} Rac8 {[%emt 0:00:21]} 24. Qd2 {[%emt 0:00:08]} cxd4 {[%emt 0:00:04]} 25. exd4 {[%emt 0:00:02]} b5 {[%emt 0:00:16]} 26. Ng3 {[%emt 0:00:04]} b4 {[%emt 0:00:09]} 27. Nf5 {[%emt 0:00:02]} Qd7 {[%emt 0:00:03]} 28. Nd3 {[%emt 0:00:02]} Qa7 {[%emt 0:00:25]} 29. Qf4 {[%emt 0:00:04]} Qb8 {[%emt 0:00:06]} 30. Nxh6+ {[%emt 0:00:07]} Kf8 {[%emt 0:00:03]} 31. Nf5 {[%emt 0:00:06]} Qxf4 {[%emt 0:00:03]} 32. Nxf4 {[%emt 0:00:02]} Ne7 {[%emt 0:00:03]} 33. Nxe7 {[%emt 0:00:07]} Rxe7 {[%emt 0:00:02]} 34. Rxe7 {[%emt 0:00:04]} Kxe7 {[%emt 0:00:02]} 35. g5 {[%emt 0:00:01]} Nh7 {[%emt 0:00:01]} 36. Re1+ {[%emt 0:00:05]} Kd6 {[%emt 0:00:04]} 37. Re5 {[%emt 0:00:02]} Rc2+ {[%emt 0:00:02]} 38. Kg3 {[%emt 0:00:01]} Rxb2 {[%emt 0:00:04]} 39. Rxd5+ {[%emt 0:00:02]} Kc6 {[%emt 0:00:02]} 40. Rxa5 {[%emt 0:00:10]} bxa3 {[%emt 0:00:02]} 41. g6 {[%emt 0:00:06]} fxg6 {[%emt 0:00:05]} 42. hxg6 {[%emt 0:00:02]} Nf6 {[%emt 0:00:11]} 43. Rxa3 {[%emt 0:00:02]} Rb7 {[%emt 0:00:06]} 44. Re3 {[%emt 0:00:05]} Rd7 {[%emt 0:00:03]} 45. Re6+ {[%emt 0:00:05]} Kb5 {[%emt 0:00:03]} 46. Rxf6 {[%emt 0:00:20]} gxf6 {[%emt 0:00:03]} 47. Nh5 {[%emt 0:00:02]} Rd5 {[%emt 0:00:17]} 48. f4 {[%emt 0:00:08]} Rd8 {[%emt 0:00:03]} 49. Nxf6 {[%emt 0:00:02]} 1-0

[Event "Djerba Festival Blitz 2025"]
[Site "Djerba"]
[Date "2025.02.21"]
[Round "5.2"]
[White "Willems, Niels"]
[Black "Dardha, Daniel"]
[Result "0-1"]
[ECO "A22"]
[WhiteElo "2414"]
[BlackElo "2652"]
[PlyCount "68"]
[EventDate "2025.02.15"]
[EventType "swiss"]
[EventCountry "TUN"]
[TimeControl "180+3"]

1. c4 {[%emt 0:00:03]} e5 {[%emt 0:00:07]} 2. Nc3 {[%emt 0:00:03]} Nf6 {[%emt 0:00:03]} 3. Nf3 {[%emt 0:00:02]} e4 {[%emt 0:00:01]} 4. Ng5 {[%emt 0:00:02]} c6 {[%emt 0:00:02]} 5. Ngxe4 {[%emt 0:00:17]} Nxe4 {[%emt 0:00:02]} 6. Nxe4 {[%emt 0:00:02]} d5 {[%emt 0:00:02]} 7. cxd5 {[%emt 0:00:02]} cxd5 {[%emt 0:00:02]} 8. Ng3 {[%emt 0:00:02]} h5 {[%emt 0:00:02]} 9. e3 {[%emt 0:00:01]} Nc6 {[%emt 0:00:02]} 10. d4 {[%emt 0:00:05]} h4 {[%emt 0:03:10]} 11. Ne2 {[%emt 0:00:02]} Bd6 {[%emt 0:00:00]} 12. Nc3 {[%emt 0:00:05]} h3 {[%emt 0:00:00]} 13. gxh3 {[%emt 0:00:24]} Bf5 {[%emt 0:00:00]} 14. a3 {[%emt 0:00:12]} Qd7 {[%emt 0:00:00]} 15. Bg2 {[%emt 0:00:08]} O-O-O {[%emt 0:00:00]} 16. Bd2 {[%emt 0:00:07]} Kb8 {[%emt 0:00:00]} 17. Bxd5 {[%emt 0:00:16]} Rxh3 {[%emt 0:00:00]} 18. Qa4 {[%emt 0:00:07]} Rc8 {[%emt 0:00:00]} 19. Bg2 {[%emt 0:00:49]} Rh4 {[%emt 0:00:00]} 20. Rc1 {[%emt 0:00:19]} a6 {[%emt 0:00:00]} 21. Nd5 {[%emt 0:00:02]} Qd8 {[%emt 0:00:00]} 22. b4 {[%emt 0:00:34]} Qg5 {[%emt 0:00:00]} 23. Bf3 {[%emt 0:00:23]} Bg4 {[%emt 0:00:00]} 24. Bxg4 {[%emt 0:00:04]} Rxg4 {[%emt 0:00:00]} 25. Nc3 {[%emt 0:00:03]} Nxd4 {[%emt 0:00:00]} 26. exd4 {[%emt 0:00:02]} Qf5 {[%emt 0:00:00]} 27. Be3 {[%emt 0:00:03]} Qf3 {[%emt 0:00:00]} 28. Rf1 {[%emt 0:00:03]} Bf4 {[%emt 0:00:00]} 29. Ne2 {[%emt 0:00:05]} Rxc1+ {[%emt 0:00:04]} 30. Bxc1 {[%emt 0:00:02]} Bxc1 {[%emt 0:00:02]} 31. Nxc1 {[%emt 0:00:02]} Qc3+ {[%emt 0:00:05]} 32. Kd1 {[%emt 0:00:03]} Rxd4+ {[%emt 0:00:03]} 33. Ke2 {[%emt 0:00:04]} Rd2+ {[%emt 0:00:01]} 34. Ke1 {[%emt 0:00:02]} Qxc1+ {[%emt 0:00:18]} 0-1

[Event "Djerba Festival Blitz 2025"]
[Site "Djerba"]
[Date "2025.02.21"]
[Round "5.3"]
[White "Maurizzi, Marc`Andria"]
[Black "Stopa, Jacek"]
[Result "1-0"]
[ECO "C02"]
[WhiteElo "2581"]
[BlackElo "2310"]
[PlyCount "65"]
[EventDate "2025.02.15"]
[EventType "swiss"]
[EventCountry "TUN"]
[TimeControl "180+3"]

1. e4 {[%emt 0:00:03]} e6 {[%emt 0:00:02]} 2. d4 {[%emt 0:00:05]} d5 {[%emt 0:00:03]} 3. e5 {[%emt 0:00:02]} c5 {[%emt 0:00:01]} 4. c3 {[%emt 0:00:01]} Bd7 {[%emt 0:00:06]} 5. Nf3 {[%emt 0:00:02]} Qb6 {[%emt 0:00:02]} 6. Be2 {[%emt 0:00:07]} Bb5 {[%emt 0:00:02]} 7. dxc5 {[%emt 0:00:02]} Bxc5 {[%emt 0:00:05]} 8. b4 {[%emt 0:00:01]} Bxf2+ {[%emt 0:00:11]} 9. Kf1 {[%emt 0:00:01]} Bc6 {[%emt 0:00:43]} 10. a4 {[%emt 0:00:07]} a6 {[%emt 0:00:04]} 11. a5 {[%emt 0:00:07]} Qa7 {[%emt 0:00:07]} 12. Na3 {[%emt 0:00:01]} Be3 {[%emt 0:00:15]} 13. b5 {[%emt 0:00:03]} axb5 {[%emt 0:00:17]} 14. Nxb5 {[%emt 0:00:01]} Bxb5 {[%emt 0:00:04]} 15. Bxb5+ {[%emt 0:00:02]} Nc6 {[%emt 0:00:29]} 16. Bxe3 {[%emt 0:00:30]} Qxe3 {[%emt 0:00:04]} 17. a6 {[%emt 0:00:01]} Nge7 {[%emt 0:00:26]} 18. axb7 {[%emt 0:00:02]} Rb8 {[%emt 0:00:01]} 19. Nd4 {[%emt 0:00:02]} O-O {[%emt 0:00:17]} 20. Nxc6 {[%emt 0:00:02]} Rxb7 {[%emt 0:00:03]} 21. Nxe7+ {[%emt 0:00:02]} Rxe7 {[%emt 0:00:08]} 22. Qd4 {[%emt 0:00:06]} Qg5 {[%emt 0:00:06]} 23. h4 {[%emt 0:00:08]} Qf5+ {[%emt 0:00:02]} 24. Kg1 {[%emt 0:00:01]} f6 {[%emt 0:00:07]} 25. exf6 {[%emt 0:00:11]} Rxf6 {[%emt 0:00:05]} 26. Bd3 {[%emt 0:00:04]} Qh5 {[%emt 0:00:11]} 27. Ra8+ {[%emt 0:00:13]} Re8 {[%emt 0:00:12]} 28. Rxe8+ {[%emt 0:00:07]} Qxe8 {[%emt 0:00:02]} 29. Rh3 {[%emt 0:00:05]} Qf7 {[%emt 0:00:07]} 30. Rg3 {[%emt 0:00:08]} Qe7 {[%emt 0:00:04]} 31. Qe5 {[%emt 0:00:07]} Qc5+ {[%emt 0:00:02]} 32. Kh2 {[%emt 0:00:02]} Qe7 {[%emt 0:00:04]} 33. h5 {[%emt 0:00:04]} 1-0

[Event "Djerba Festival Blitz 2025"]
[Site "Djerba"]
[Date "2025.02.21"]
[Round "5.4"]
[White "Edouard, Romain"]
[Black "Moussard, Jules"]
[Result "0-1"]
[ECO "B52"]
[WhiteElo "2544"]
[BlackElo "2595"]
[PlyCount "109"]
[EventDate "2025.02.15"]
[EventType "swiss"]
[EventCountry "TUN"]
[TimeControl "180+3"]

1. e4 {[%emt 0:00:05]} c5 {[%emt 0:00:02]} 2. Nf3 {[%emt 0:00:03]} d6 {[%emt 0:00:02]} 3. Bb5+ {[%emt 0:00:08]} Bd7 {[%emt 0:00:03]} 4. Bxd7+ {[%emt 0:02:59]} Qxd7 {[%emt 0:00:24]} 5. c4 {[%emt 0:00:00]} Nc6 {[%emt 0:00:03]} 6. Nc3 {[%emt 0:00:00]} Nf6 {[%emt 0:00:02]} 7. d4 {[%emt 0:00:00]} cxd4 {[%emt 0:00:03]} 8. Nxd4 {[%emt 0:00:00]} g6 {[%emt 0:00:01]} 9. f3 {[%emt 0:00:00]} Bg7 {[%emt 0:00:03]} 10. Be3 {[%emt 0:00:00]} O-O {[%emt 0:00:02]} 11. O-O {[%emt 0:00:00]} Rfc8 {[%emt 0:00:03]} 12. b3 {[%emt 0:00:00]} a6 {[%emt 0:00:04]} 13. Nxc6 {[%emt 0:00:00]} Qxc6 {[%emt 0:00:12]} 14. Rc1 {[%emt 0:00:00]} h5 {[%emt 0:00:25]} 15. Qd2 {[%emt 0:00:00]} e6 {[%emt 0:00:14]} 16. Rfd1 {[%emt 0:00:00]} Rd8 {[%emt 0:00:04]} 17. a4 {[%emt 0:00:00]} Rac8 {[%emt 0:00:04]} 18. Bd4 {[%emt 0:00:00]} Ne8 {[%emt 0:00:09]} 19. Bxg7 {[%emt 0:00:00]} Kxg7 {[%emt 0:00:02]} 20. Qd4+ {[%emt 0:00:00]} Kg8 {[%emt 0:00:03]} 21. Rd2 {[%emt 0:00:00]} Qc5 {[%emt 0:00:18]} 22. Qxc5 {[%emt 0:00:00]} Rxc5 {[%emt 0:00:03]} 23. Kf2 {[%emt 0:00:01]} Kf8 {[%emt 0:00:03]} 24. Ne2 {[%emt 0:00:17]} g5 {[%emt 0:00:07]} 25. h4 {[%emt 0:00:09]} Ke7 {[%emt 0:00:06]} 26. hxg5 {[%emt 0:00:03]} Rxg5 {[%emt 0:00:02]} 27. Nf4 {[%emt 0:00:04]} Nf6 {[%emt 0:00:14]} 28. Rcd1 {[%emt 0:00:03]} b5 {[%emt 0:00:15]} 29. axb5 {[%emt 0:00:07]} axb5 {[%emt 0:00:02]} 30. Ra1 {[%emt 0:00:03]} bxc4 {[%emt 0:00:04]} 31. bxc4 {[%emt 0:00:02]} Rc5 {[%emt 0:00:03]} 32. Ra7+ {[%emt 0:00:08]} Rd7 {[%emt 0:00:09]} 33. Rxd7+ {[%emt 0:00:03]} Nxd7 {[%emt 0:00:03]} 34. Rc2 {[%emt 0:00:06]} h4 {[%emt 0:00:13]} 35. Nd3 {[%emt 0:00:07]} Ra5 {[%emt 0:00:02]} 36. Rb2 {[%emt 0:00:01]} Ra3 {[%emt 0:00:04]} 37. Ke2 {[%emt 0:00:02]} Rc3 {[%emt 0:00:04]} 38. Rb4 {[%emt 0:00:10]} Rc2+ {[%emt 0:00:02]} 39. Kf1 {[%emt 0:00:02]} Rd2 {[%emt 0:00:07]} 40. Rb3 {[%emt 0:00:02]} Kf6 {[%emt 0:00:04]} 41. c5 {[%emt 0:00:09]} dxc5 {[%emt 0:00:21]} 42. Rc3 {[%emt 0:00:02]} c4 {[%emt 0:00:02]} 43. Nf2 {[%emt 0:00:08]} Nb6 {[%emt 0:00:08]} 44. Ra3 {[%emt 0:00:07]} Ke5 {[%emt 0:00:06]} 45. Ra6 {[%emt 0:00:03]} Rb2 {[%emt 0:00:03]} 46. Nd1 {[%emt 0:00:03]} Rb1 {[%emt 0:00:02]} 47. Ke2 {[%emt 0:00:02]} Kf4 {[%emt 0:00:06]} 48. Ra7 {[%emt 0:00:03]} f5 {[%emt 0:00:08]} 49. exf5 {[%emt 0:00:03]} exf5 {[%emt 0:00:01]} 50. Rc7 {[%emt 0:00:02]} Ra1 {[%emt 0:00:05]} 51. Rc6 {[%emt 0:00:03]} Rb1 {[%emt 0:00:02]} 52. Nc3 {[%emt 0:00:04]} Rb2+ {[%emt 0:00:02]} 53. Kf1 {[%emt 0:00:03]} Ke5 {[%emt 0:00:10]} 54. Nd5 Nxd5 {[%emt 0:00:04]} 55. Rc8 {[%emt 0:00:11]} 0-1

[Event "Djerba Festival Blitz 2025"]
[Site "Djerba"]
[Date "2025.02.21"]
[Round "5.5"]
[White "Thorfinnsson, Bjorn"]
[Black "Pichon, Ewen"]
[Result "0-1"]
[ECO "D02"]
[WhiteElo "2377"]
[BlackElo "2351"]
[PlyCount "34"]
[EventDate "2025.02.15"]
[EventType "swiss"]
[EventCountry "TUN"]
[TimeControl "180+3"]

1. d4 {[%emt 0:00:03]} d5 {[%emt 0:00:03]} 2. Nf3 {[%emt 0:00:02]} Nf6 {[%emt 0:00:01]} 3. c3 {[%emt 0:00:02]} c5 {[%emt 0:00:08]} 4. dxc5 {[%emt 0:00:02]} e6 {[%emt 0:00:01]} 5. Be3 {[%emt 0:00:03]} a5 {[%emt 0:00:08]} 6. h3 {[%emt 0:00:03]} Na6 {[%emt 0:00:04]} 7. Ne5 {[%emt 0:00:28]} Bd7 {[%emt 0:00:08]} 8. Qb3 {[%emt 0:00:08]} Qc7 {[%emt 0:00:06]} 9. Nxd7 {[%emt 0:00:08]} Nxd7 {[%emt 0:00:02]} 10. Qb5 {[%emt 0:00:02]} Bxc5 {[%emt 0:00:09]} 11. Bxc5 {[%emt 0:00:06]} Naxc5 {[%emt 0:00:02]} 12. Nd2 {[%emt 0:00:03]} Ra6 {[%emt 0:00:08]} 13. e4 {[%emt 0:00:21]} dxe4 {[%emt 0:00:10]} 14. O-O-O {[%emt 0:00:05]} O-O {[%emt 0:00:04]} 15. Nc4 {[%emt 0:00:06]} a4 {[%emt 0:00:13]} 16. g3 {[%emt 0:00:11]} Rc6 {[%emt 0:00:17]} 17. Qxa4 {[%emt 0:00:10]} Nxa4 {[%emt 0:00:02]} 0-1

[Event "Djerba Festival Blitz 2025"]
[Site "Djerba"]
[Date "2025.02.21"]
[Round "5.6"]
[White "Amrane, Abdellah"]
[Black "Kobalia, Mikhail"]
[Result "0-1"]
[ECO "B46"]
[WhiteElo "2021"]
[BlackElo "2538"]
[PlyCount "88"]
[EventDate "2025.02.15"]
[EventType "swiss"]
[EventCountry "TUN"]
[TimeControl "180+3"]

1. e4 {[%emt 0:00:09]} c5 {[%emt 0:00:03]} 2. Nf3 {[%emt 0:00:04]} e6 {[%emt 0:00:01]} 3. d4 {[%emt 0:00:02]} cxd4 {[%emt 0:00:02]} 4. Nxd4 {[%emt 0:00:02]} Nc6 {[%emt 0:00:02]} 5. Nc3 {[%emt 0:00:05]} a6 {[%emt 0:00:01]} 6. a3 {[%emt 0:00:04]} d6 {[%emt 0:00:05]} 7. Be2 {[%emt 0:00:06]} Bd7 {[%emt 0:00:02]} 8. Be3 {[%emt 0:00:02]} Nf6 {[%emt 0:00:02]} 9. O-O {[%emt 0:00:03]} Be7 {[%emt 0:00:02]} 10. Nb3 {[%emt 0:00:07]} Na5 {[%emt 0:00:08]} 11. Nxa5 {[%emt 0:00:21]} Qxa5 {[%emt 0:00:02]} 12. f4 {[%emt 0:00:03]} O-O {[%emt 0:00:09]} 13. Qe1 {[%emt 0:00:08]} Qc7 {[%emt 0:00:35]} 14. Bf3 {[%emt 0:00:08]} Bc6 {[%emt 0:00:03]} 15. g4 {[%emt 0:00:05]} d5 {[%emt 0:00:10]} 16. e5 {[%emt 0:00:05]} Nd7 {[%emt 0:00:03]} 17. Qf2 {[%emt 0:00:07]} Rac8 {[%emt 0:00:08]} 18. Ne2 {[%emt 0:00:02]} Bb5 {[%emt 0:00:03]} 19. c3 {[%emt 0:00:01]} Bc5 {[%emt 0:00:04]} 20. Rfd1 {[%emt 0:00:23]} Bxe2 {[%emt 0:00:05]} 21. Bxe2 {[%emt 0:00:04]} Bxe3 {[%emt 0:00:19]} 22. Qxe3 {[%emt 0:00:02]} g5 {[%emt 0:00:10]} 23. f5 {[%emt 0:00:31]} h6 {[%emt 0:00:13]} 24. fxe6 {[%emt 0:00:17]} fxe6 {[%emt 0:00:04]} 25. Re1 {[%emt 0:00:20]} Qxe5 {[%emt 0:00:08]} 26. Qxe5 {[%emt 0:00:02]} Nxe5 {[%emt 0:00:02]} 27. Bd1 {[%emt 0:00:02]} Nc4 {[%emt 0:00:26]} 28. Re3 {[%emt 0:01:02]} e5 29. Rxe5 {[%emt 0:00:00]} Nxb2 {[%emt 0:00:07]} 30. Re6 {[%emt 0:00:00]} Nc4 {[%emt 0:00:13]} 31. Bb3 {[%emt 0:00:00]} Rc7 32. Rxh6 {[%emt 0:00:00]} Rcf7 {[%emt 0:01:07]} 33. Rg6+ Rg7 {[%emt 0:00:00]} 34. Rxg7+ {[%emt 0:00:00]} Kxg7 {[%emt 0:00:00]} 35. Bxc4 {[%emt 0:00:00]} dxc4 {[%emt 0:00:00]} 36. Rd1 {[%emt 0:00:00]} Rf3 {[%emt 0:00:00]} 37. Rd7+ {[%emt 0:00:02]} Kf6 {[%emt 0:00:00]} 38. Rxb7 {[%emt 0:00:03]} Rxc3 {[%emt 0:00:00]} 39. Rb6+ {[%emt 0:00:02]} Ke5 {[%emt 0:00:00]} 40. Rxa6 {[%emt 0:00:01]} Rc2 {[%emt 0:00:00]} 41. h3 {[%emt 0:00:14]} c3 {[%emt 0:00:00]} 42. Ra4 {[%emt 0:00:03]} Rd2 {[%emt 0:00:00]} 43. Ra5+ {[%emt 0:00:13]} Kd4 {[%emt 0:00:00]} 44. Rxg5 {[%emt 0:00:06]} c2 {[%emt 0:00:00]} 0-1

[Event "Djerba Festival Blitz 2025"]
[Site "Djerba"]
[Date "2025.02.21"]
[Round "5.8"]
[White "Doucet, Pierre-Alois"]
[Black "Viers, Emmanuel"]
[Result "1-0"]
[ECO "B30"]
[WhiteElo "2027"]
[BlackElo "2072"]
[PlyCount "39"]
[EventDate "2025.02.15"]
[EventType "swiss"]
[EventCountry "TUN"]
[TimeControl "180+3"]

1. e4 {[%emt 0:00:03]} c5 {[%emt 0:00:03]} 2. Nf3 {[%emt 0:00:02]} Nc6 {[%emt 0:00:02]} 3. Bb5 {[%emt 0:00:01]} e5 {[%emt 0:00:04]} 4. O-O {[%emt 0:00:04]} Nge7 {[%emt 0:00:02]} 5. c3 {[%emt 0:00:02]} g6 {[%emt 0:00:02]} 6. d4 {[%emt 0:00:02]} cxd4 {[%emt 0:00:01]} 7. cxd4 {[%emt 0:00:02]} exd4 {[%emt 0:00:03]} 8. Nxd4 {[%emt 0:00:01]} Bg7 {[%emt 0:00:02]} 9. Nxc6 {[%emt 0:00:05]} bxc6 {[%emt 0:00:03]} 10. Bc4 {[%emt 0:03:11]} d5 {[%emt 0:00:09]} 11. exd5 {[%emt 0:00:00]} cxd5 {[%emt 0:00:02]} 12. Bb5+ {[%emt 0:00:00]} Bd7 {[%emt 0:00:02]} 13. Bxd7+ {[%emt 0:00:00]} Qxd7 {[%emt 0:00:02]} 14. Nc3 {[%emt 0:00:00]} d4 {[%emt 0:00:21]} 15. Ne2 {[%emt 0:00:00]} Rb8 {[%emt 0:00:13]} 16. Bg5 {[%emt 0:00:00]} O-O {[%emt 0:00:25]} 17. Qd2 {[%emt 0:00:00]} Nf5 {[%emt 0:00:08]} 18. Rad1 {[%emt 0:00:00]} Qb5 {[%emt 0:00:29]} 19. b3 {[%emt 0:00:00]} Rfe8 {[%emt 0:00:04]} 20. Ng3 {[%emt 0:00:00]} 1-0

[Event "Djerba Festival Blitz 2025"]
[Site "Djerba"]
[Date "2025.02.21"]
[Round "5.9"]
[White "Boudriga, Mohamed Ali"]
[Black "MEZGOURI NOUREDDINE"]
[Result "1-0"]
[ECO "B01"]
[WhiteElo "2323"]
[BlackElo "1891"]
[PlyCount "67"]
[EventDate "2025.02.15"]
[EventType "swiss"]
[EventCountry "TUN"]
[TimeControl "180+3"]

1. e4 {[%emt 0:00:03]} d5 {[%emt 0:00:04]} 2. exd5 {[%emt 0:00:02]} Nf6 {[%emt 0:00:03]} 3. d4 {[%emt 0:00:03]} Nxd5 {[%emt 0:00:03]} 4. Nf3 {[%emt 0:00:01]} Bf5 {[%emt 0:00:02]} 5. a3 {[%emt 0:00:08]} e6 {[%emt 0:00:05]} 6. Be2 {[%emt 0:00:03]} Be7 {[%emt 0:00:03]} 7. O-O {[%emt 0:00:03]} O-O {[%emt 0:00:02]} 8. c4 {[%emt 0:00:07]} Nb6 {[%emt 0:00:02]} 9. Be3 {[%emt 0:00:02]} Bf6 {[%emt 0:00:07]} 10. Nc3 {[%emt 0:00:04]} a6 {[%emt 0:00:03]} 11. h3 {[%emt 0:00:20]} N8d7 {[%emt 0:00:05]} 12. b4 {[%emt 0:00:08]} e5 {[%emt 0:00:11]} 13. d5 {[%emt 0:00:06]} Nc8 {[%emt 0:00:32]} 14. c5 {[%emt 0:00:04]} Bg6 {[%emt 0:00:14]} 15. Qb3 {[%emt 0:00:03]} Ne7 {[%emt 0:00:09]} 16. g4 {[%emt 0:00:22]} e4 {[%emt 0:00:10]} 17. Nd4 {[%emt 0:00:30]} Bxd4 {[%emt 0:00:16]} 18. Bxd4 {[%emt 0:01:48]} Kh8 19. f4 {[%emt 0:00:00]} exf3 {[%emt 0:00:08]} 20. Bxf3 {[%emt 0:00:00]} f5 {[%emt 0:00:07]} 21. Rae1 {[%emt 0:00:00]} fxg4 {[%emt 0:00:13]} 22. hxg4 {[%emt 0:00:00]} Ng8 {[%emt 0:00:10]} 23. Kg2 {[%emt 0:00:00]} Qg5 {[%emt 0:00:13]} 24. Be3 {[%emt 0:00:00]} Qf6 {[%emt 0:00:13]} 25. Ne4 {[%emt 0:00:00]} Qd8 {[%emt 0:00:14]} 26. Bd4 {[%emt 0:00:02]} Ngf6 {[%emt 0:00:10]} 27. Ng3 {[%emt 0:00:02]} Re8 {[%emt 0:00:11]} 28. Re6 {[%emt 0:00:02]} Bf7 {[%emt 0:00:15]} 29. Nf5 {[%emt 0:00:09]} Bxe6 {[%emt 0:00:11]} 30. dxe6 {[%emt 0:00:03]} Nb8 {[%emt 0:00:10]} 31. Rd1 {[%emt 0:00:04]} Qc8 {[%emt 0:00:04]} 32. g5 {[%emt 0:00:07]} Qxe6 {[%emt 0:00:09]} 33. Qxe6 {[%emt 0:00:16]} Rxe6 {[%emt 0:00:03]} 34. gxf6 {[%emt 0:00:03]} 1-0

[Event "Djerba Festival Blitz 2025"]
[Site "Djerba"]
[Date "2025.02.21"]
[Round "5.10"]
[White "Bouzidi, Ahmed"]
[Black "Msalmi, Hamed"]
[Result "1-0"]
[ECO "B22"]
[WhiteElo "2168"]
[BlackElo "1747"]
[PlyCount "61"]
[EventDate "2025.02.15"]
[EventType "swiss"]
[EventCountry "TUN"]
[TimeControl "180+3"]

1. e4 {[%emt 0:00:03]} c5 {[%emt 0:00:02]} 2. c3 {[%emt 0:00:01]} d6 {[%emt 0:00:03]} 3. d4 {[%emt 0:00:02]} cxd4 {[%emt 0:00:02]} 4. cxd4 {[%emt 0:03:09]} Nf6 {[%emt 0:00:02]} 5. Nc3 {[%emt 0:00:00]} g6 {[%emt 0:00:04]} 6. Nf3 {[%emt 0:00:00]} Bg7 {[%emt 0:00:02]} 7. h3 {[%emt 0:00:00]} O-O {[%emt 0:00:05]} 8. Be2 {[%emt 0:00:00]} Nc6 {[%emt 0:00:05]} 9. O-O {[%emt 0:00:00]} a6 {[%emt 0:00:06]} 10. Be3 {[%emt 0:00:00]} e6 {[%emt 0:00:17]} 11. Qd2 {[%emt 0:00:00]} Re8 {[%emt 0:00:03]} 12. Bh6 {[%emt 0:00:00]} Qb6 {[%emt 0:00:09]} 13. Bxg7 Kxg7 {[%emt 0:00:02]} 14. e5 {[%emt 0:00:00]} dxe5 {[%emt 0:00:05]} 15. dxe5 {[%emt 0:00:00]} Ng8 {[%emt 0:00:12]} 16. Rab1 {[%emt 0:00:00]} Rd8 {[%emt 0:00:11]} 17. Qf4 {[%emt 0:00:00]} Nce7 {[%emt 0:00:10]} 18. Ng5 {[%emt 0:00:00]} Rf8 {[%emt 0:00:26]} 19. Nce4 {[%emt 0:00:00]} h6 {[%emt 0:00:14]} 20. Nf3 {[%emt 0:00:00]} Nd5 {[%emt 0:00:04]} 21. Qh4 {[%emt 0:00:00]} Bd7 {[%emt 0:00:09]} 22. Bc4 {[%emt 0:00:00]} Bc6 {[%emt 0:00:10]} 23. Nd6 {[%emt 0:00:00]} Rad8 {[%emt 0:00:15]} 24. Bb3 {[%emt 0:00:05]} a5 {[%emt 0:00:03]} 25. Rbd1 {[%emt 0:00:10]} Nde7 {[%emt 0:00:11]} 26. Nd4 {[%emt 0:00:17]} Bd5 {[%emt 0:00:16]} 27. Bxd5 {[%emt 0:00:07]} Nxd5 {[%emt 0:00:02]} 28. Qg4 {[%emt 0:00:08]} Qxb2 {[%emt 0:00:12]} 29. Nxf7 {[%emt 0:00:04]} Rd7 {[%emt 0:00:23]} 30. Nxe6+ {[%emt 0:00:06]} Kh7 {[%emt 0:00:02]} 31. Nxf8+ {[%emt 0:00:05]} 1-0

[Event "Djerba Festival Blitz 2025"]
[Site "Djerba"]
[Date "2025.02.21"]
[Round "5.11"]
[White "Boulrens, Ala Eddine"]
[Black "Dejardin, Gregoire"]
[Result "1-0"]
[ECO "B14"]
[WhiteElo "2121"]
[BlackElo "1932"]
[PlyCount "77"]
[EventDate "2025.02.15"]
[EventType "swiss"]
[EventCountry "TUN"]
[TimeControl "180+3"]

1. e4 {[%emt 0:00:02]} c6 {[%emt 0:00:02]} 2. d4 {[%emt 0:00:03]} d5 {[%emt 0:00:02]} 3. exd5 {[%emt 0:00:02]} cxd5 {[%emt 0:00:02]} 4. c4 {[%emt 0:00:02]} e6 {[%emt 0:00:02]} 5. Nc3 {[%emt 0:00:02]} Nf6 {[%emt 0:00:02]} 6. Nf3 {[%emt 0:00:02]} Be7 {[%emt 0:00:01]} 7. Bf4 {[%emt 0:00:04]} O-O {[%emt 0:00:03]} 8. c5 {[%emt 0:00:03]} Bd7 {[%emt 0:00:08]} 9. Bd3 {[%emt 0:00:05]} b6 {[%emt 0:00:06]} 10. b4 {[%emt 0:00:02]} a5 {[%emt 0:00:02]} 11. a3 {[%emt 0:00:05]} axb4 {[%emt 0:00:09]} 12. axb4 {[%emt 0:00:02]} Rxa1 {[%emt 0:00:03]} 13. Qxa1 {[%emt 0:00:02]} bxc5 {[%emt 0:00:03]} 14. bxc5 {[%emt 0:00:10]} Bc6 {[%emt 0:00:15]} 15. Ne5 {[%emt 0:00:05]} Nfd7 {[%emt 0:00:03]} 16. Qb1 {[%emt 0:00:11]} g6 {[%emt 0:00:10]} 17. Nf3 {[%emt 0:00:12]} Qa5 {[%emt 0:00:19]} 18. Bd2 {[%emt 0:00:02]} Qc7 {[%emt 0:00:04]} 19. O-O {[%emt 0:00:05]} Bf6 {[%emt 0:00:08]} 20. Nb5 {[%emt 0:00:13]} Bxb5 {[%emt 0:00:04]} 21. Qxb5 {[%emt 0:00:05]} Nc6 {[%emt 0:00:08]} 22. Qa4 {[%emt 0:00:12]} e5 {[%emt 0:00:24]} 23. Bb5 {[%emt 0:00:12]} Ndb8 {[%emt 0:00:06]} 24. dxe5 {[%emt 0:00:19]} Nxe5 {[%emt 0:00:02]} 25. Nxe5 {[%emt 0:00:02]} Bxe5 {[%emt 0:00:10]} 26. h3 {[%emt 0:00:08]} Rc8 {[%emt 0:00:13]} 27. Rc1 {[%emt 0:00:02]} Nc6 {[%emt 0:00:08]} 28. Qg4 {[%emt 0:00:13]} h5 {[%emt 0:00:10]} 29. Qa4 {[%emt 0:00:20]} Nd4 {[%emt 0:00:14]} 30. Bf1 {[%emt 0:00:03]} Ne6 {[%emt 0:00:13]} 31. c6 {[%emt 0:00:06]} Bf4 {[%emt 0:00:09]} 32. Ba5 {[%emt 0:00:17]} Qe7 {[%emt 0:00:16]} 33. Re1 {[%emt 0:00:08]} Qc5 {[%emt 0:00:08]} 34. Bb5 {[%emt 0:00:42]} Bc7 {[%emt 0:00:15]} 35. Bb4 {[%emt 0:00:06]} Qd4 {[%emt 0:00:09]} 36. Rd1 {[%emt 0:00:02]} Qe5 {[%emt 0:00:06]} 37. g3 {[%emt 0:00:06]} Nd4 {[%emt 0:00:06]} 38. Bf1 {[%emt 0:00:06]} Nf3+ {[%emt 0:00:08]} 39. Kh1 {[%emt 0:00:02]} 1-0